[Event "Titled Tuesday Blitz May 16 Late 2023"]
[White "Jovic, Stanoje"]
[Black "Vaglio Munoz, Jaime"]
[WhiteFideId "905020"]
[BlackFideId "6500145"]
[WhiteElo "2236"]
[BlackElo "2199"]
[Result "1-0"]
[Round "06"]
[TimeControl "180+2"]
[Date "2023.05.16"]
[WhiteClock "0:00:10"]
[BlackClock "0:00:36"]

1. c4 {[%clk 0:03:00]}  c6 {[%clk 0:02:58]} 2. e4 {[%clk 0:03:00]}  a6 {[%clk 0:02:57]} 3. Nf3 {[%clk 0:02:57]}  b5 {[%clk 0:02:57]} 4. d4 {[%clk 0:02:55]}  bxc4 {[%clk 0:02:56]} 5. Bxc4 {[%clk 0:02:54]}  d5 {[%clk 0:02:57]} 6. Bb3 {[%clk 0:02:52]}  Bg4 {[%clk 0:02:52]} 7. O-O {[%clk 0:02:46]}  e6 {[%clk 0:02:51]} 8. exd5 {[%clk 0:02:38]}  cxd5 {[%clk 0:02:50]} 9. h3 {[%clk 0:02:35]}  Bxf3 {[%clk 0:02:49]} 10. Qxf3 {[%clk 0:02:35]}  Nf6 {[%clk 0:02:49]} 11. Bg5 {[%clk 0:02:30]}  Be7 {[%clk 0:02:48]} 12. Ba4+ {[%clk 0:02:28]}  Nbd7 {[%clk 0:02:47]} 13. Nc3 {[%clk 0:02:22]}  O-O {[%clk 0:02:46]} 14. Bxd7 {[%clk 0:02:20]}  Qxd7 {[%clk 0:02:43]} 15. Bxf6 {[%clk 0:02:19]}  Bxf6 {[%clk 0:02:42]} 16. Rfd1 {[%clk 0:02:19]}  Rfb8 {[%clk 0:02:39]} 17. b3 {[%clk 0:02:16]}  Qa7 {[%clk 0:02:36]} 18. Ne2 {[%clk 0:02:11]}  a5 {[%clk 0:02:34]} 19. Rab1 {[%clk 0:01:58]}  Rb4 {[%clk 0:02:31]} 20. a3 {[%clk 0:01:54]}  Rb5 {[%clk 0:02:30]} 21. Nc3 {[%clk 0:01:44]}  Rb7 {[%clk 0:02:25]} 22. Qd3 {[%clk 0:01:40]}  Rab8 {[%clk 0:02:18]} 23. Ne2 {[%clk 0:01:39]}  Rc7 {[%clk 0:02:08]} 24. Rdc1 {[%clk 0:01:31]}  Rbc8 {[%clk 0:02:07]} 25. Rxc7 {[%clk 0:01:29]}  Qxc7 {[%clk 0:02:08]} 26. b4 {[%clk 0:01:24]}  axb4 {[%clk 0:02:07]} 27. axb4 {[%clk 0:01:24]}  Qb6 {[%clk 0:02:06]} 28. b5 {[%clk 0:01:21]}  Rc4 {[%clk 0:02:03]} 29. Qa3 {[%clk 0:01:12]}  g5 {[%clk 0:01:49]} 30. Qa6 {[%clk 0:01:09]}  Bd8 {[%clk 0:01:46]} 31. Qxb6 {[%clk 0:01:04]}  Bxb6 {[%clk 0:01:46]} 32. Kf1 {[%clk 0:01:04]}  f5 {[%clk 0:01:43]} 33. Ke1 {[%clk 0:01:03]}  Kf7 {[%clk 0:01:41]} 34. Kd2 {[%clk 0:01:03]}  Kf6 {[%clk 0:01:41]} 35. Kd3 {[%clk 0:00:58]}  h5 {[%clk 0:01:37]} 36. f3 {[%clk 0:00:54]}  Ra4 {[%clk 0:01:27]} 37. Rb3 {[%clk 0:00:48]}  e5 {[%clk 0:01:24]} 38. Rc3 {[%clk 0:00:35]}  Bxd4 {[%clk 0:01:17]} 39. Rc6+ {[%clk 0:00:35]}  Ke7 {[%clk 0:01:17]} 40. Nxd4 {[%clk 0:00:30]}  Rxd4+ {[%clk 0:01:15]} 41. Kc3 {[%clk 0:00:30]}  Kd7 {[%clk 0:01:06]} 42. Rg6 {[%clk 0:00:28]}  g4 {[%clk 0:01:04]} 43. Rg7+ {[%clk 0:00:23]}  Kc8 {[%clk 0:01:03]} 44. Rg5 {[%clk 0:00:22]}  gxf3 {[%clk 0:00:58]} 45. gxf3 {[%clk 0:00:22]}  Rf4 {[%clk 0:00:58]} 46. Rxh5 {[%clk 0:00:22]}  Kb7 {[%clk 0:00:56]} 47. h4 {[%clk 0:00:20]}  Kb6 {[%clk 0:00:56]} 48. Rh8 {[%clk 0:00:19]}  Kxb5 {[%clk 0:00:56]} 49. h5 {[%clk 0:00:19]}  Rxf3+ {[%clk 0:00:56]} 50. Kd2 {[%clk 0:00:20]}  Rh3 {[%clk 0:00:56]} 51. h6 {[%clk 0:00:20]}  Kc4 {[%clk 0:00:56]} 52. h7 {[%clk 0:00:18]}  Kd4 {[%clk 0:00:56]} 53. Ke2 {[%clk 0:00:19]}  e4 {[%clk 0:00:55]} 54. Kf2 {[%clk 0:00:19]}  f4 {[%clk 0:00:55]} 55. Kg2 {[%clk 0:00:19]}  Rh6 {[%clk 0:00:55]} 56. Kf2 {[%clk 0:00:19]}  Kd3 {[%clk 0:00:51]} 57. Rd8 {[%clk 0:00:17]}  Rxh7 {[%clk 0:00:48]} 58. Rxd5+ {[%clk 0:00:17]}  Kc4 {[%clk 0:00:49]} 59. Rd8 {[%clk 0:00:16]}  Rh2+ {[%clk 0:00:48]} 60. Kg1 {[%clk 0:00:17]}  Rd2 {[%clk 0:00:47]} 61. Rxd2 {[%clk 0:00:16]}  e3 {[%clk 0:00:46]} 62. Rd8 {[%clk 0:00:15]}  f3 {[%clk 0:00:46]} 63. Kf1 {[%clk 0:00:15]}  Kc3 {[%clk 0:00:46]} 64. Ke1 {[%clk 0:00:15]}  Kc4 {[%clk 0:00:47]} 65. Rd7 {[%clk 0:00:14]}  Kc3 {[%clk 0:00:47]} 66. Rf7 {[%clk 0:00:14]}  f2+ {[%clk 0:00:42]} 67. Ke2 {[%clk 0:00:14]}  Kd4 {[%clk 0:00:43]} 68. Rf4+ {[%clk 0:00:11]}  Ke5 {[%clk 0:00:43]} 69. Rh4 {[%clk 0:00:10]}  Kf5 {[%clk 0:00:42]} 70. Rh3 {[%clk 0:00:10]}  Kg4 {[%clk 0:00:42]} 71. Rxe3 {[%clk 0:00:09]}  Kf4 {[%clk 0:00:41]} 72. Rf3+ {[%clk 0:00:09]}  Kg4 {[%clk 0:00:42]} 73. Kxf2 {[%clk 0:00:09]}  Kg5 {[%clk 0:00:41]} 74. Ke3 {[%clk 0:00:09]}  Kg4 {[%clk 0:00:41]} 75. Ke4 {[%clk 0:00:10]}  Kg5 {[%clk 0:00:41]} 76. Rf4 {[%clk 0:00:10]}  Kg6 {[%clk 0:00:40]} 77. Rf5 {[%clk 0:00:10]}  Kh6 {[%clk 0:00:39]} 78. Ke5 {[%clk 0:00:10]}  Kg6 {[%clk 0:00:39]} 79. Ke6 {[%clk 0:00:11]}  Kg7 {[%clk 0:00:36]} 80. Rf6 {[%clk 0:00:10]} 1-0


[Site "https://www.chess.com"]

[Event "Titled Tuesday Blitz May 16 Late 2023"]
[White "Carrasco Miranda, Andres"]
[Black "Deviprasath, Sharvesh"]
[WhiteFideId "3405990"]
[BlackFideId "30938228"]
[WhiteElo "2183"]
[BlackElo "2168"]
[Result "0-1"]
[Round "06"]
[TimeControl "180+2"]
[Date "2023.05.16"]
[WhiteClock "0:00:00"]
[BlackClock "0:00:14"]

1. d4 {[%clk 0:03:00]}  d5 {[%clk 0:02:58]} 2. c4 {[%clk 0:03:01]}  e6 {[%clk 0:02:57]} 3. g3 {[%clk 0:03:00]}  Nf6 {[%clk 0:02:57]} 4. Bg2 {[%clk 0:03:00]}  Bb4+ {[%clk 0:02:58]} 5. Nd2 {[%clk 0:02:59]}  O-O {[%clk 0:02:55]} 6. Nf3 {[%clk 0:02:58]}  dxc4 {[%clk 0:02:55]} 7. O-O {[%clk 0:02:54]}  c3 {[%clk 0:02:54]} 8. Nc4 {[%clk 0:02:53]}  b5 {[%clk 0:02:28]} 9. Nfe5 {[%clk 0:02:41]}  Nd5 {[%clk 0:02:28]} 10. a3 {[%clk 0:02:11]}  Bd6 {[%clk 0:02:24]} 11. Na5 {[%clk 0:02:00]}  c5 {[%clk 0:02:20]} 12. bxc3 {[%clk 0:01:55]}  Qxa5 {[%clk 0:02:17]} 13. c4 {[%clk 0:01:53]}  Bxe5 {[%clk 0:02:12]} 14. cxd5 {[%clk 0:01:47]}  Bxd4 {[%clk 0:02:12]} 15. dxe6 {[%clk 0:01:43]}  Bxe6 {[%clk 0:02:13]} 16. Rb1 {[%clk 0:01:39]}  Bf5 {[%clk 0:02:05]} 17. Bxa8 {[%clk 0:01:34]}  Bxb1 {[%clk 0:02:03]} 18. Bd2 {[%clk 0:01:34]}  Qxa3 {[%clk 0:01:54]} 19. Qxb1 {[%clk 0:01:34]}  b4 {[%clk 0:01:48]} 20. e3 {[%clk 0:01:21]}  Bf6 {[%clk 0:01:45]} 21. Qf5 {[%clk 0:01:20]}  Na6 {[%clk 0:01:39]} 22. Be4 {[%clk 0:01:19]}  Re8 {[%clk 0:01:28]} 23. Qxh7+ {[%clk 0:01:17]}  Kf8 {[%clk 0:01:29]} 24. Bd5 {[%clk 0:00:51]}  Nc7 {[%clk 0:01:22]} 25. e4 {[%clk 0:00:48]}  Qd3 {[%clk 0:01:05]} 26. Bf4 {[%clk 0:00:46]}  Nb5 {[%clk 0:00:44]} 27. Qh5 {[%clk 0:00:33]}  g6 {[%clk 0:00:33]} 28. Qh7 {[%clk 0:00:33]}  Bg7 {[%clk 0:00:31]} 29. Bh6 {[%clk 0:00:32]}  Qd4 {[%clk 0:00:26]} 30. Qh8+ {[%clk 0:00:32]}  Ke7 {[%clk 0:00:27]} 31. Qxg7 {[%clk 0:00:33]}  Qxg7 {[%clk 0:00:27]} 32. Bxg7 {[%clk 0:00:34]}  Rc8 {[%clk 0:00:27]} 33. Bc4 {[%clk 0:00:27]}  Nd6 {[%clk 0:00:27]} 34. Bd5 {[%clk 0:00:23]}  c4 {[%clk 0:00:26]} 35. e5 {[%clk 0:00:20]}  Nf5 {[%clk 0:00:26]} 36. Bf6+ {[%clk 0:00:20]}  Kf8 {[%clk 0:00:26]} 37. Ra1 {[%clk 0:00:17]}  c3 {[%clk 0:00:23]} 38. Rxa7 {[%clk 0:00:16]}  c2 {[%clk 0:00:21]} 39. Rxf7+ {[%clk 0:00:16]}  Ke8 {[%clk 0:00:22]} 40. Bg5 {[%clk 0:00:12]}  c1=Q+ {[%clk 0:00:22]} 41. Bxc1 {[%clk 0:00:12]}  Rxc1+ {[%clk 0:00:21]} 42. Kg2 {[%clk 0:00:12]}  Rd1 {[%clk 0:00:20]} 43. Bf3 {[%clk 0:00:02]}  Re1 {[%clk 0:00:14]} 44. Rb7 {[%clk 0:00:00]}  Rb1 {[%clk 0:00:14]} 0-1


[Site "https://www.chess.com"]

[Event "Titled Tuesday Blitz May 16 Late 2023"]
[White "Fernandez Siles, Luis"]
[Black "Molenda, Marcin"]
[WhiteFideId "2209420"]
[BlackFideId "1173065"]
[WhiteElo "2195"]
[BlackElo "2286"]
[Result "0-1"]
[Round "06"]
[TimeControl "180+2"]
[Date "2023.05.16"]
[WhiteClock "0:00:44"]
[BlackClock "0:02:04"]

1. d4 {[%clk 0:03:00]}  Nf6 {[%clk 0:02:54]} 2. c4 {[%clk 0:03:00]}  c5 {[%clk 0:02:54]} 3. d5 {[%clk 0:02:59]}  e6 {[%clk 0:02:53]} 4. Nc3 {[%clk 0:02:58]}  exd5 {[%clk 0:02:54]} 5. cxd5 {[%clk 0:02:59]}  d6 {[%clk 0:02:54]} 6. e4 {[%clk 0:03:00]}  a6 {[%clk 0:02:53]} 7. f4 {[%clk 0:02:55]}  g6 {[%clk 0:02:49]} 8. e5 {[%clk 0:02:55]}  dxe5 {[%clk 0:02:42]} 9. fxe5 {[%clk 0:02:54]}  Ng4 {[%clk 0:02:43]} 10. e6 {[%clk 0:02:49]}  f5 {[%clk 0:02:41]} 11. Be2 {[%clk 0:02:30]}  Bd6 {[%clk 0:02:31]} 12. Ne4 {[%clk 0:01:59]}  fxe4 {[%clk 0:02:24]} 13. Bxg4 {[%clk 0:01:58]}  Qh4+ {[%clk 0:02:24]} 14. g3 {[%clk 0:01:37]}  Bxg3+ {[%clk 0:02:24]} 15. hxg3 {[%clk 0:01:37]}  Qxh1 {[%clk 0:02:25]} 16. Be3 {[%clk 0:01:35]}  Qg2 {[%clk 0:02:16]} 17. d6 {[%clk 0:01:18]}  O-O {[%clk 0:02:15]} 18. Bf4 {[%clk 0:01:09]}  Qxg1+ {[%clk 0:02:11]} 19. Kd2 {[%clk 0:01:07]}  Qd4+ {[%clk 0:02:04]} 20. Kc2 {[%clk 0:01:06]}  Qc4+ {[%clk 0:02:03]} 21. Kd2 {[%clk 0:00:44]}  Bxe6 {[%clk 0:02:04]} 0-1


[Site "https://www.chess.com"]

[Event "Titled Tuesday Blitz May 16 Late 2023"]
[White "Ladan, Nicholas"]
[Black "Stachanczyk, Jacek"]
[WhiteFideId "30918855"]
[BlackFideId "1116657"]
[WhiteElo "2167"]
[BlackElo "2084"]
[Result "1-0"]
[Round "06"]
[TimeControl "180+2"]
[Date "2023.05.16"]
[WhiteClock "0:00:06"]
[BlackClock "0:00:16"]

1. d4 {[%clk 0:03:00]}  Nf6 {[%clk 0:02:59]} 2. Nf3 {[%clk 0:03:01]}  g6 {[%clk 0:02:58]} 3. Nbd2 {[%clk 0:03:02]}  d5 {[%clk 0:02:58]} 4. e3 {[%clk 0:03:02]}  Bg7 {[%clk 0:02:57]} 5. b4 {[%clk 0:03:03]}  O-O {[%clk 0:02:57]} 6. c4 {[%clk 0:03:03]}  a5 {[%clk 0:02:56]} 7. b5 {[%clk 0:03:03]}  dxc4 {[%clk 0:02:46]} 8. Bxc4 {[%clk 0:03:04]}  c5 {[%clk 0:02:41]} 9. dxc5 {[%clk 0:02:57]}  Ne4 {[%clk 0:02:37]} 10. Nxe4 {[%clk 0:02:44]}  Bxa1 {[%clk 0:02:35]} 11. Nd4 {[%clk 0:02:33]}  Bf5 {[%clk 0:02:23]} 12. Ng5 {[%clk 0:02:09]}  e5 {[%clk 0:02:10]} 13. Nxf5 {[%clk 0:02:08]}  Qxg5 {[%clk 0:02:10]} 14. Nd6 {[%clk 0:01:56]}  Bc3+ {[%clk 0:02:08]} 15. Kf1 {[%clk 0:01:44]}  Nd7 {[%clk 0:02:03]} 16. Ne4 {[%clk 0:01:37]}  Qh4 {[%clk 0:01:54]} 17. Qd3 {[%clk 0:01:20]}  Rad8 {[%clk 0:01:41]} 18. Nxc3 {[%clk 0:01:16]}  Nxc5 {[%clk 0:01:06]} 19. Qe2 {[%clk 0:01:14]}  e4 {[%clk 0:00:58]} 20. Ba3 {[%clk 0:01:04]}  Rc8 {[%clk 0:00:53]} 21. Nd5 {[%clk 0:00:40]}  Nd3 {[%clk 0:00:45]} 22. Bxd3 {[%clk 0:00:30]}  exd3 {[%clk 0:00:44]} 23. Qxd3 {[%clk 0:00:31]}  Rfd8 {[%clk 0:00:41]} 24. e4 {[%clk 0:00:26]}  h5 {[%clk 0:00:26]} 25. f3 {[%clk 0:00:21]}  Kh7 {[%clk 0:00:20]} 26. Ke2 {[%clk 0:00:17]}  Qg5 {[%clk 0:00:19]} 27. Kf2 {[%clk 0:00:15]}  Rd7 {[%clk 0:00:16]} 28. Rd1 {[%clk 0:00:07]}  f5 {[%clk 0:00:16]} 29. Nf6+ {[%clk 0:00:06]}  Qxf6 {[%clk 0:00:17]} 30. Qxd7+ {[%clk 0:00:07]}  Kh6 {[%clk 0:00:16]} 31. Bc1+ {[%clk 0:00:06]} 1-0


[Site "https://www.chess.com"]

[Event "Titled Tuesday Blitz May 16 Late 2023"]
[White "Celestino, Rafael Teixeira"]
[Black "Geivondian, Arman"]
[WhiteFideId "2108925"]
[BlackFideId "24102032"]
[WhiteElo "2334"]
[BlackElo "2278"]
[Result "0-1"]
[Round "06"]
[TimeControl "180+2"]
[Date "2023.05.16"]
[WhiteClock "0:01:26"]
[BlackClock "0:02:18"]

1. e4 {[%clk 0:03:00]}  c6 {[%clk 0:02:59]} 2. Nf3 {[%clk 0:03:01]}  d5 {[%clk 0:03:00]} 3. Nc3 {[%clk 0:03:01]}  dxe4 {[%clk 0:03:00]} 4. Nxe4 {[%clk 0:03:02]}  Nf6 {[%clk 0:03:01]} 5. Neg5 {[%clk 0:03:02]}  h6 {[%clk 0:03:01]} 6. Nxf7 {[%clk 0:03:02]}  Kxf7 {[%clk 0:03:02]} 7. Bc4+ {[%clk 0:03:02]}  Ke8 {[%clk 0:03:02]} 8. Ne5 {[%clk 0:03:03]}  e6 {[%clk 0:03:01]} 9. Qe2 {[%clk 0:03:03]}  Bd6 {[%clk 0:02:57]} 10. Ng6 {[%clk 0:03:03]}  Kf7 {[%clk 0:02:53]} 11. Nxh8+ {[%clk 0:03:00]}  Qxh8 {[%clk 0:02:54]} 12. d4 {[%clk 0:03:00]}  Qe8 {[%clk 0:02:53]} 13. O-O {[%clk 0:03:00]}  Nbd7 {[%clk 0:02:52]} 14. Re1 {[%clk 0:02:59]}  Nf8 {[%clk 0:02:52]} 15. Bd2 {[%clk 0:02:57]}  Bd7 {[%clk 0:02:53]} 16. Rad1 {[%clk 0:02:57]}  Rd8 {[%clk 0:02:51]} 17. Qf3 {[%clk 0:02:56]}  Kg8 {[%clk 0:02:50]} 18. Bxh6 {[%clk 0:02:52]}  Qg6 {[%clk 0:02:47]} 19. Bf4 {[%clk 0:02:49]}  Be8 {[%clk 0:02:34]} 20. Re2 {[%clk 0:02:29]}  Bf7 {[%clk 0:02:32]} 21. Rde1 {[%clk 0:02:27]}  Bxf4 {[%clk 0:02:27]} 22. Qxf4 {[%clk 0:02:27]}  Rd7 {[%clk 0:02:27]} 23. c3 {[%clk 0:02:26]}  Qf5 {[%clk 0:02:28]} 24. Qg3 {[%clk 0:02:03]}  Nh5 {[%clk 0:02:26]} 25. Qh4 {[%clk 0:02:03]}  Ng6 {[%clk 0:02:24]} 26. Qe4 {[%clk 0:01:56]}  Nhf4 {[%clk 0:02:17]} 27. Qxf5 {[%clk 0:01:36]}  Nxe2+ {[%clk 0:02:17]} 28. Rxe2 {[%clk 0:01:36]}  exf5 {[%clk 0:02:17]} 29. Re8+ {[%clk 0:01:35]}  Kh7 {[%clk 0:02:17]} 30. Bxf7 {[%clk 0:01:33]}  Rxf7 {[%clk 0:02:18]} 31. g3 {[%clk 0:01:33]}  Re7 {[%clk 0:02:18]} 32. Ra8 {[%clk 0:01:33]}  a6 {[%clk 0:02:17]} 33. a4 {[%clk 0:01:33]}  f4 {[%clk 0:02:18]} 34. b4 {[%clk 0:01:32]}  f3 {[%clk 0:02:18]} 35. h4 {[%clk 0:01:32]}  Re1+ {[%clk 0:02:18]} 36. Kh2 {[%clk 0:01:32]}  Rf1 {[%clk 0:02:19]} 37. Ra7 {[%clk 0:01:28]}  Rxf2+ {[%clk 0:02:19]} 38. Kg1 {[%clk 0:01:28]}  Rg2+ {[%clk 0:02:17]} 39. Kf1 {[%clk 0:01:28]}  Ne7 {[%clk 0:02:17]} 40. Rxb7 {[%clk 0:01:28]}  Nf5 {[%clk 0:02:17]} 41. Rf7 {[%clk 0:01:27]}  Ne3+ {[%clk 0:02:17]} 42. Ke1 {[%clk 0:01:26]}  Re2# {[%clk 0:02:18]} 0-1


[Site "https://www.chess.com"]

[Event "Titled Tuesday Blitz May 16 Late 2023"]
[White "Figorito, Nick"]
[Black "krucki03"]
[WhiteFideId "30923689"]
[WhiteElo "2327"]
[BlackElo "2467"]
[Result "1-0"]
[Round "06"]
[TimeControl "180+2"]
[Date "2023.05.16"]
[WhiteClock "0:00:38"]
[BlackClock "0:00:00"]

1. Nf3 {[%clk 0:03:00]}  d5 {[%clk 0:02:59]} 2. g3 {[%clk 0:03:01]}  e6 {[%clk 0:03:00]} 3. Bg2 {[%clk 0:03:02]}  Nf6 {[%clk 0:03:00]} 4. O-O {[%clk 0:03:02]}  Be7 {[%clk 0:03:01]} 5. d4 {[%clk 0:03:02]}  O-O {[%clk 0:03:01]} 6. Nbd2 {[%clk 0:03:03]}  b6 {[%clk 0:03:00]} 7. b3 {[%clk 0:03:02]}  c5 {[%clk 0:03:00]} 8. Bb2 {[%clk 0:03:01]}  Nc6 {[%clk 0:02:58]} 9. c4 {[%clk 0:03:01]}  cxd4 {[%clk 0:02:57]} 10. Nxd4 {[%clk 0:03:00]}  Nxd4 {[%clk 0:02:57]} 11. Bxd4 {[%clk 0:03:01]}  Bb7 {[%clk 0:02:58]} 12. cxd5 {[%clk 0:02:53]}  Bxd5 {[%clk 0:02:57]} 13. Bxd5 {[%clk 0:02:51]}  Qxd5 {[%clk 0:02:57]} 14. Nf3 {[%clk 0:02:48]}  Rfd8 {[%clk 0:02:56]} 15. Bxf6 {[%clk 0:02:46]}  Bxf6 {[%clk 0:02:56]} 16. Qxd5 {[%clk 0:02:46]}  Rxd5 {[%clk 0:02:57]} 17. Rac1 {[%clk 0:02:43]}  h6 {[%clk 0:02:50]} 18. Rc7 {[%clk 0:02:40]}  a5 {[%clk 0:02:50]} 19. Rb7 {[%clk 0:02:34]}  Rb5 {[%clk 0:02:44]} 20. Rc1 {[%clk 0:02:28]}  a4 {[%clk 0:02:26]} 21. bxa4 {[%clk 0:02:12]}  Rxa4 {[%clk 0:02:22]} 22. Rc8+ {[%clk 0:02:12]}  Kh7 {[%clk 0:02:22]} 23. Rc2 {[%clk 0:02:02]}  Kg6 {[%clk 0:02:13]} 24. e3 {[%clk 0:01:55]}  Rb1+ {[%clk 0:01:44]} 25. Kg2 {[%clk 0:01:54]}  b5 {[%clk 0:01:45]} 26. Nd2 {[%clk 0:01:45]}  Rbb4 {[%clk 0:01:25]} 27. Nb3 {[%clk 0:01:30]}  Rc4 {[%clk 0:01:25]} 28. Re2 {[%clk 0:01:23]}  b4 {[%clk 0:01:24]} 29. h4 {[%clk 0:01:16]}  h5 {[%clk 0:00:18]} 30. Rb5 {[%clk 0:01:15]}  Bc3 {[%clk 0:00:15]} 31. Nc5 {[%clk 0:01:06]}  Ra3 {[%clk 0:00:12]} 32. Nd3 {[%clk 0:01:05]}  e5 {[%clk 0:00:03]} 33. Rxe5 {[%clk 0:00:48]}  Kh7 {[%clk 0:00:02]} 34. Rxh5+ {[%clk 0:00:46]}  Kg8 {[%clk 0:00:00]} 35. Rc5 {[%clk 0:00:38]} 1-0


[Site "https://www.chess.com"]

[Event "Titled Tuesday Blitz May 16 Late 2023"]
[White "Rose, Felix"]
[Black "Koutlas, Nikolaos"]
[WhiteFideId "5105722"]
[BlackFideId "25827138"]
[WhiteElo "2039"]
[BlackElo "2215"]
[Result "0-1"]
[Round "06"]
[TimeControl "180+2"]
[Date "2023.05.16"]
[WhiteClock "0:00:26"]
[BlackClock "0:00:55"]

1. e4 {[%clk 0:03:00]}  e6 {[%clk 0:02:55]} 2. d4 {[%clk 0:03:00]}  d5 {[%clk 0:02:55]} 3. Nc3 {[%clk 0:03:00]}  h6 {[%clk 0:02:54]} 4. Nf3 {[%clk 0:03:00]}  Nf6 {[%clk 0:02:53]} 5. Bd3 {[%clk 0:03:00]}  c5 {[%clk 0:02:52]} 6. exd5 {[%clk 0:02:59]}  exd5 {[%clk 0:02:52]} 7. Qe2+ {[%clk 0:02:58]}  Be6 {[%clk 0:02:50]} 8. Bb5+ {[%clk 0:02:53]}  Nc6 {[%clk 0:02:48]} 9. Ne5 {[%clk 0:02:50]}  Rc8 {[%clk 0:02:47]} 10. dxc5 {[%clk 0:02:44]}  Bxc5 {[%clk 0:02:44]} 11. O-O {[%clk 0:02:42]}  O-O {[%clk 0:02:44]} 12. Bf4 {[%clk 0:02:40]}  Nd4 {[%clk 0:02:39]} 13. Qd1 {[%clk 0:02:25]}  Nxb5 {[%clk 0:02:27]} 14. Nxb5 {[%clk 0:02:25]}  Ne4 {[%clk 0:02:24]} 15. Nd4 {[%clk 0:02:18]}  Bxd4 {[%clk 0:02:21]} 16. Qxd4 {[%clk 0:02:19]}  Rxc2 {[%clk 0:02:22]} 17. Qxa7 {[%clk 0:02:16]}  Rxb2 {[%clk 0:02:20]} 18. Rab1 {[%clk 0:02:14]}  Rxb1 {[%clk 0:02:01]} 19. Rxb1 {[%clk 0:02:15]}  Qf6 {[%clk 0:01:59]} 20. Qe3 {[%clk 0:02:09]}  d4 {[%clk 0:01:44]} 21. Qf3 {[%clk 0:01:29]}  Nc3 {[%clk 0:01:36]} 22. Rxb7 {[%clk 0:01:03]}  Qxf4 {[%clk 0:01:17]} 23. Qxf4 {[%clk 0:00:49]}  Ne2+ {[%clk 0:01:15]} 24. Kf1 {[%clk 0:00:50]}  Nxf4 {[%clk 0:01:16]} 25. g3 {[%clk 0:00:42]}  Nd5 {[%clk 0:01:07]} 26. a4 {[%clk 0:00:39]}  Ra8 {[%clk 0:01:04]} 27. Nc6 {[%clk 0:00:34]}  Rxa4 {[%clk 0:01:02]} 28. Rb8+ {[%clk 0:00:35]}  Kh7 {[%clk 0:01:02]} 29. Rd8 {[%clk 0:00:34]}  d3 {[%clk 0:01:01]} 30. Ke1 {[%clk 0:00:26]}  Ra2 {[%clk 0:00:55]} 0-1


[Site "https://www.chess.com"]

[Event "Titled Tuesday Blitz May 16 Late 2023"]
[White "Lucas, Arthur"]
[Black "Wieczorek, Zbigniew"]
[WhiteFideId "26093073"]
[BlackFideId "1102001"]
[WhiteElo "2251"]
[BlackElo "2292"]
[Result "0-1"]
[Round "06"]
[TimeControl "180+2"]
[Date "2023.05.16"]
[WhiteClock "0:00:11"]
[BlackClock "0:01:34"]

1. e4 {[%clk 0:02:59]}  g6 {[%clk 0:03:00]} 2. d4 {[%clk 0:03:00]}  Bg7 {[%clk 0:03:00]} 3. Nc3 {[%clk 0:03:00]}  c6 {[%clk 0:03:01]} 4. Be3 {[%clk 0:03:00]}  d5 {[%clk 0:03:01]} 5. e5 {[%clk 0:02:57]}  f6 {[%clk 0:03:01]} 6. f4 {[%clk 0:02:56]}  Nh6 {[%clk 0:03:01]} 7. Nf3 {[%clk 0:02:55]}  Bg4 {[%clk 0:03:01]} 8. Be2 {[%clk 0:02:55]}  O-O {[%clk 0:03:01]} 9. Qd2 {[%clk 0:02:55]}  Nd7 {[%clk 0:03:01]} 10. O-O-O {[%clk 0:02:49]}  Nf5 {[%clk 0:03:00]} 11. Bf2 {[%clk 0:02:48]}  Bxf3 {[%clk 0:02:58]} 12. Bxf3 {[%clk 0:02:48]}  fxe5 {[%clk 0:02:59]} 13. dxe5 {[%clk 0:02:39]}  Nxe5 {[%clk 0:02:59]} 14. Be2 {[%clk 0:01:49]}  Nf7 {[%clk 0:02:52]} 15. Kb1 {[%clk 0:01:41]}  e5 {[%clk 0:02:32]} 16. g4 {[%clk 0:01:37]}  N5d6 {[%clk 0:02:32]} 17. Bg3 {[%clk 0:01:23]}  d4 {[%clk 0:02:04]} 18. fxe5 {[%clk 0:01:02]}  dxc3 {[%clk 0:02:02]} 19. Qxc3 {[%clk 0:01:01]}  Qb6 {[%clk 0:01:40]} 20. Rhf1 {[%clk 0:00:34]}  Ne4 {[%clk 0:01:36]} 21. Qc4 {[%clk 0:00:17]}  Nxg3 {[%clk 0:01:35]} 22. hxg3 {[%clk 0:00:17]}  Bxe5 {[%clk 0:01:35]} 23. Rd7 {[%clk 0:00:11]}  Qxb2# {[%clk 0:01:34]} 0-1


[Site "https://www.chess.com"]

[Event "Titled Tuesday Blitz May 16 Late 2023"]
[White "mjelcic"]
[Black "Womacka, Mathias"]
[BlackFideId "4611390"]
[WhiteElo "2272"]
[BlackElo "2377"]
[Result "0-1"]
[Round "06"]
[TimeControl "180+2"]
[Date "2023.05.16"]
[WhiteClock "0:00:03"]
[BlackClock "0:01:35"]

1. c4 {[%clk 0:03:00]}  c5 {[%clk 0:02:59]} 2. Nc3 {[%clk 0:02:59]}  Nf6 {[%clk 0:03:00]} 3. g3 {[%clk 0:02:58]}  d5 {[%clk 0:03:00]} 4. cxd5 {[%clk 0:02:53]}  Nxd5 {[%clk 0:03:01]} 5. Bg2 {[%clk 0:02:53]}  Nc7 {[%clk 0:03:00]} 6. Nf3 {[%clk 0:02:47]}  Nc6 {[%clk 0:02:59]} 7. O-O {[%clk 0:02:38]}  e5 {[%clk 0:03:00]} 8. d3 {[%clk 0:02:27]}  Be7 {[%clk 0:03:00]} 9. Be3 {[%clk 0:02:26]}  O-O {[%clk 0:02:57]} 10. Rc1 {[%clk 0:02:26]}  Ne6 {[%clk 0:02:57]} 11. Ne4 {[%clk 0:02:21]}  b6 {[%clk 0:02:56]} 12. Nc3 {[%clk 0:02:18]}  Bd7 {[%clk 0:02:49]} 13. a3 {[%clk 0:02:13]}  Ned4 {[%clk 0:02:46]} 14. Nd5 {[%clk 0:01:53]}  Bd6 {[%clk 0:02:36]} 15. Rb1 {[%clk 0:01:29]}  Bg4 {[%clk 0:02:29]} 16. b4 {[%clk 0:01:15]}  Nxf3+ {[%clk 0:02:19]} 17. exf3 {[%clk 0:01:16]}  Be6 {[%clk 0:02:18]} 18. bxc5 {[%clk 0:01:15]}  Bxd5 {[%clk 0:02:09]} 19. cxd6 {[%clk 0:01:14]}  Qxd6 {[%clk 0:02:10]} 20. f4 {[%clk 0:01:11]}  Rfd8 {[%clk 0:01:57]} 21. Bxd5 {[%clk 0:01:01]}  Qxd5 {[%clk 0:01:58]} 22. Qa4 {[%clk 0:00:49]}  exf4 {[%clk 0:01:52]} 23. Bxf4 {[%clk 0:00:48]}  Nd4 {[%clk 0:01:51]} 24. f3 {[%clk 0:00:08]}  Nxf3+ {[%clk 0:01:48]} 25. Kf2 {[%clk 0:00:08]}  Nxh2 {[%clk 0:01:41]} 26. Rh1 {[%clk 0:00:08]}  Ng4+ {[%clk 0:01:36]} 27. Ke2 {[%clk 0:00:05]}  Qxd3+ {[%clk 0:01:35]} 28. Ke1 {[%clk 0:00:03]}  Qxb1+ {[%clk 0:01:35]} 0-1


[Site "https://www.chess.com"]